[Event "*** SCC Grand Prix: Titled Tuesday Blitz"]
[Site "Chess.com"]
[Date "2020.06.23"]
[Round "7"]
[White "FMOlexandrProhorov"]
[Black "ArnieChipmunk"]
[Result "0-1"]
[WhiteElo "2114"]
[BlackElo "2333"]
[TimeControl "180+1"]
[EndTime "11:19:49 PDT"]
[Termination "ArnieChipmunk won by resignation"]

1. e4 {[%clk 0:02:58.5]} 1... e5 {[%clk 0:02:59.1]} 2. Nf3 {[%clk 0:02:57.5]}
2... d6 {[%clk 0:02:59]} 3. d4 {[%clk 0:02:57.1]} 3... f5 {[%clk 0:02:59.1]} 4.
Nc3 {[%clk 0:02:46.4]} 4... fxe4 {[%clk 0:02:58.8]} 5. Nxe4 {[%clk 0:02:42.8]}
5... Nf6 {[%clk 0:02:58.7]} 6. Nxf6+ {[%clk 0:02:37]} 6... gxf6 {[%clk
0:02:59.1]} 7. dxe5 {[%clk 0:02:32.4]} 7... dxe5 {[%clk 0:02:59.2]} 8. Bd3
{[%clk 0:02:28.5]} 8... Be6 {[%clk 0:02:50.3]} 9. O-O {[%clk 0:02:26.6]} 9...
Nc6 {[%clk 0:02:50.5]} 10. Re1 {[%clk 0:02:18.2]} 10... Qd7 {[%clk 0:02:48]} 11.
Bb5 {[%clk 0:02:10.9]} 11... O-O-O {[%clk 0:02:45.2]} 12. Qxd7+ {[%clk
0:02:07.2]} 12... Bxd7 {[%clk 0:02:44.8]} 13. Be3 {[%clk 0:02:05.6]} 13... a6
{[%clk 0:02:39.6]} 14. Bc4 {[%clk 0:02:04.8]} 14... Bd6 {[%clk 0:02:30.7]} 15.
Rad1 {[%clk 0:02:03]} 15... Rhe8 {[%clk 0:02:27.9]} 16. c3 {[%clk 0:02:01.9]}
16... e4 {[%clk 0:02:18]} 17. Nd4 {[%clk 0:01:59]} 17... Ne5 {[%clk 0:02:18.2]}
18. Be2 {[%clk 0:01:51.2]} 18... Bg4 {[%clk 0:02:10.5]} 19. h3 {[%clk
0:01:45.6]} 19... Bxe2 {[%clk 0:02:10.2]} 20. Rxe2 {[%clk 0:01:45.3]} 20... Bc5
{[%clk 0:01:52.6]} 21. Red2 {[%clk 0:01:38.3]} 21... Nc4 {[%clk 0:01:41.8]} 22.
Re2 {[%clk 0:01:31.5]} 22... Ne5 {[%clk 0:01:35.3]} 23. Red2 {[%clk 0:01:29.6]}
23... Bxd4 {[%clk 0:01:30.6]} 24. Rxd4 {[%clk 0:01:14.4]} 24... f5 {[%clk
0:01:25.4]} 25. Bg5 {[%clk 0:01:08.1]} 25... Rxd4 {[%clk 0:01:22.5]} 26. Rxd4
{[%clk 0:01:08.2]} 26... Rg8 {[%clk 0:01:18.3]} 27. Rd5 {[%clk 0:00:48]} 27...
Nf3+ {[%clk 0:01:12.1]} 28. gxf3 {[%clk 0:00:47.6]} 28... Rxg5+ {[%clk
0:01:10.8]} 29. Kf1 {[%clk 0:00:48.2]} 29... exf3 {[%clk 0:01:09.4]} 30. Rd3
{[%clk 0:00:47.3]} 30... Rg7 {[%clk 0:00:44.9]} 31. Rxf3 {[%clk 0:00:47.1]}
31... Rf7 {[%clk 0:00:45.4]} 32. Ke2 {[%clk 0:00:46.1]} 32... Kd7 {[%clk
0:00:45.8]} 33. Kd3 {[%clk 0:00:45.3]} 33... Ke6 {[%clk 0:00:46.1]} 34. Rf4
{[%clk 0:00:45.3]} 34... Ke5 {[%clk 0:00:43.7]} 35. Rb4 {[%clk 0:00:45.1]} 35...
c5 {[%clk 0:00:43.1]} 36. Rb6 {[%clk 0:00:44.7]} 36... Rd7+ {[%clk 0:00:36.6]}
37. Ke3 {[%clk 0:00:44.5]} 37... f4+ {[%clk 0:00:35]} 38. Ke2 {[%clk 0:00:40.7]}
38... Ke4 {[%clk 0:00:29.6]} 39. Re6+ {[%clk 0:00:40.5]} 39... Kf5 {[%clk
0:00:29.7]} 40. Rh6 {[%clk 0:00:40.4]} 40... Re7+ {[%clk 0:00:28]} 41. Kd2
{[%clk 0:00:40.2]} 41... f3 {[%clk 0:00:26.2]} 42. Rh5+ {[%clk 0:00:32.5]} 42...
Kf4 {[%clk 0:00:25.9]} 43. Rxc5 {[%clk 0:00:29.1]} 43... Re2+ {[%clk 0:00:25.7]}
44. Kd3 {[%clk 0:00:29]} 44... Rxb2 {[%clk 0:00:24.7]} 45. Rc8 {[%clk
0:00:24.1]} 45... Rxf2 {[%clk 0:00:22]} 46. Rf8+ {[%clk 0:00:24.1]} 46... Kg3
{[%clk 0:00:22.1]} 47. Ke3 {[%clk 0:00:24.3]} 47... Rf1 {[%clk 0:00:18.1]} 48.
Rg8+ {[%clk 0:00:19.5]} 48... Kh2 {[%clk 0:00:17.7]} 49. h4 {[%clk 0:00:17.4]}
49... f2 {[%clk 0:00:12.4]} 50. Ke2 {[%clk 0:00:16.2]} 50... Rg1 {[%clk
0:00:12.1]} 51. Rf8 {[%clk 0:00:13.7]} 51... Kh3 {[%clk 0:00:05.6]} 52. Rf3+
{[%clk 0:00:12.9]} 52... Kxh4 {[%clk 0:00:05.6]} 53. Rxf2 {[%clk 0:00:12]} 53...
Kg4 {[%clk 0:00:05.3]} 54. Kd3 {[%clk 0:00:10.3]} 54... Rb1 {[%clk 0:00:05.6]}
55. Rf7 {[%clk 0:00:09.5]} 55... h5 {[%clk 0:00:06]} 56. c4 {[%clk 0:00:08.9]}
56... h4 {[%clk 0:00:06.3]} 57. c5 {[%clk 0:00:09.1]} 57... h3 {[%clk
0:00:06.6]} 58. Rg7+ {[%clk 0:00:09.6]} 58... Kf3 {[%clk 0:00:06.6]} 59. Rf7+
{[%clk 0:00:09.4]} 59... Kg3 {[%clk 0:00:07]} 60. Ke3 {[%clk 0:00:09.6]} 60...
Rc1 {[%clk 0:00:06]} 61. Rg7+ {[%clk 0:00:09.6]} 61... Kh4 {[%clk 0:00:05.8]}
62. Rxb7 {[%clk 0:00:08.8]} 62... Rxc5 {[%clk 0:00:05.2]} 63. Rh7+ {[%clk
0:00:08.6]} 63... Rh5 {[%clk 0:00:05.4]} 64. Rg7 {[%clk 0:00:08.7]} 64... h2
{[%clk 0:00:05.5]} 65. a4 {[%clk 0:00:05.4]} 65... h1=Q {[%clk 0:00:05.5]} 66.
Kd4 {[%clk 0:00:05.3]} 66... Qd1+ {[%clk 0:00:05.3]} 67. Kc4 {[%clk 0:00:04.8]}
67... Qd5+ {[%clk 0:00:05.4]} 0-1

[Event "*** SCC Grand Prix: Titled Tuesday Blitz"]
[Site "Chess.com"]
[Date "2020.06.23"]
[Round "7"]
[White "Djager97"]
[Black "fabianvivasz"]
[Result "1/2-1/2"]
[WhiteElo "2445"]
[BlackElo "2281"]
[TimeControl "180+1"]
[EndTime "11:19:58 PDT"]
[Termination "Game drawn - insufficient material"]

1. e4 {[%clk 0:03:00.9]} 1... e5 {[%clk 0:02:57.4]} 2. Nf3 {[%clk 0:03:00.7]}
2... Nc6 {[%clk 0:02:55.2]} 3. d4 {[%clk 0:03:01.2]} 3... exd4 {[%clk
0:02:54.7]} 4. Nxd4 {[%clk 0:03:02.1]} 4... Nf6 {[%clk 0:02:54.1]} 5. Nxc6
{[%clk 0:03:02.5]} 5... bxc6 {[%clk 0:02:55]} 6. e5 {[%clk 0:03:03.1]} 6... Qe7
{[%clk 0:02:54.7]} 7. Qe2 {[%clk 0:03:03.5]} 7... Nd5 {[%clk 0:02:55.3]} 8. c4
{[%clk 0:03:04]} 8... Ba6 {[%clk 0:02:55.9]} 9. b3 {[%clk 0:03:04]} 9... Qh4
{[%clk 0:02:52.3]} 10. Bb2 {[%clk 0:02:46.8]} 10... Bb4+ {[%clk 0:02:48]} 11.
Nd2 {[%clk 0:02:42.8]} 11... Nc3 {[%clk 0:02:48.1]} 12. Qd3 {[%clk 0:02:13.8]}
12... Ne4 {[%clk 0:02:47.2]} 13. g3 {[%clk 0:02:14.1]} 13... Bxd2+ {[%clk
0:02:30.2]} 14. Qxd2 {[%clk 0:02:12.6]} 14... Nxd2 {[%clk 0:02:28.2]} 15. gxh4
{[%clk 0:02:12]} 15... Nf3+ {[%clk 0:02:28.7]} 16. Kd1 {[%clk 0:02:02.9]} 16...
O-O {[%clk 0:02:07.3]} 17. Kc2 {[%clk 0:01:56.5]} 17... Rfe8 {[%clk 0:02:01]}
18. Bh3 {[%clk 0:01:49.1]} 18... Rad8 {[%clk 0:01:51.6]} 19. Rad1 {[%clk
0:01:37.6]} 19... Nxe5 {[%clk 0:01:45.2]} 20. Bxe5 {[%clk 0:01:35]} 20... Rxe5
{[%clk 0:01:46.1]} 21. Rxd7 {[%clk 0:01:35.5]} 21... Rxd7 {[%clk 0:01:43.6]} 22.
Bxd7 {[%clk 0:01:36.4]} 22... Re2+ {[%clk 0:01:42.2]} 23. Kc3 {[%clk 0:01:36.6]}
23... Rxa2 {[%clk 0:01:26.3]} 24. Re1 {[%clk 0:01:29.8]} 24... g6 {[%clk
0:01:26]} 25. Bxc6 {[%clk 0:01:22.1]} 25... Rxf2 {[%clk 0:01:20.4]} 26. Re8+
{[%clk 0:01:13.7]} 26... Kg7 {[%clk 0:01:20.2]} 27. Ra8 {[%clk 0:01:14.6]} 27...
Rf6 {[%clk 0:01:19.8]} 28. Bd5 {[%clk 0:01:02.6]} 28... c6 {[%clk 0:01:11.9]}
29. Be4 {[%clk 0:01:02.5]} 29... Re6 {[%clk 0:01:07]} 30. Kd3 {[%clk 0:00:45.5]}
30... f5 {[%clk 0:00:50.6]} 31. Rxa7+ {[%clk 0:00:45.1]} 31... Kh6 {[%clk
0:00:49.8]} 32. Bxf5 {[%clk 0:00:42.3]} 32... gxf5 {[%clk 0:00:50.7]} 33. Rxa6
{[%clk 0:00:42.2]} 33... f4 {[%clk 0:00:50.6]} 34. Ra5 {[%clk 0:00:34.7]} 34...
Kg6 {[%clk 0:00:39.8]} 35. Rg5+ {[%clk 0:00:29.6]} 35... Kf6 {[%clk 0:00:39.1]}
36. Rg4 {[%clk 0:00:27.1]} 36... Kf5 {[%clk 0:00:36.3]} 37. Rg5+ {[%clk
0:00:27.2]} 37... Kf6 {[%clk 0:00:36.7]} 38. Rg8 {[%clk 0:00:23.7]} 38... Ke5
{[%clk 0:00:22.9]} 39. Rf8 {[%clk 0:00:21.1]} 39... Rd6+ {[%clk 0:00:21.1]} 40.
Kc3 {[%clk 0:00:20.9]} 40... Ke4 {[%clk 0:00:20.5]} 41. b4 {[%clk 0:00:20.1]}
41... Rd3+ {[%clk 0:00:19.7]} 42. Kc2 {[%clk 0:00:20]} 42... Rd4 {[%clk
0:00:18.6]} 43. Kc3 {[%clk 0:00:19.2]} 43... Rd3+ {[%clk 0:00:19]} 44. Kc2
{[%clk 0:00:19.3]} 44... Rh3 {[%clk 0:00:19.2]} 45. b5 {[%clk 0:00:14.4]} 45...
cxb5 {[%clk 0:00:19.4]} 46. cxb5 {[%clk 0:00:15.3]} 46... Rxh2+ {[%clk
0:00:20.2]} 47. Kc3 {[%clk 0:00:15.9]} 47... Rh3+ {[%clk 0:00:19.4]} 48. Kc4
{[%clk 0:00:15.4]} 48... Rh1 {[%clk 0:00:14]} 49. b6 {[%clk 0:00:15.5]} 49...
Rb1 {[%clk 0:00:12.5]} 50. Re8+ {[%clk 0:00:15.5]} 50... Kf3 {[%clk 0:00:12.3]}
51. Kc5 {[%clk 0:00:15.9]} 51... Kg3 {[%clk 0:00:12.3]} 52. Kc6 {[%clk
0:00:14.9]} 52... f3 {[%clk 0:00:12.2]} 53. b7 {[%clk 0:00:15.4]} 53... f2
{[%clk 0:00:12.4]} 54. Rg8+ {[%clk 0:00:16]} 54... Kxh4 {[%clk 0:00:12.3]} 55.
Rf8 {[%clk 0:00:16.5]} 55... Kg3 {[%clk 0:00:12.5]} 56. Rf5 {[%clk 0:00:15.5]}
56... Kg2 {[%clk 0:00:11.4]} 57. Rg5+ {[%clk 0:00:13.2]} 57... Kf3 {[%clk
0:00:11.2]} 58. Rf5+ {[%clk 0:00:13.1]} 58... Ke2 {[%clk 0:00:10.7]} 59. Re5+
{[%clk 0:00:12.9]} 59... Kd2 {[%clk 0:00:10.7]} 60. Rd5+ {[%clk 0:00:12.3]}
60... Ke1 {[%clk 0:00:11]} 61. Re5+ {[%clk 0:00:12.4]} 61... Kf1 {[%clk
0:00:11.5]} 62. Rh5 {[%clk 0:00:08]} 62... Rb3 {[%clk 0:00:10.6]} 63. Rxh7
{[%clk 0:00:07]} 63... Kg2 {[%clk 0:00:05.5]} 64. Rg7+ {[%clk 0:00:07]} 64...
Kh2 {[%clk 0:00:05.2]} 65. Rh7+ {[%clk 0:00:06.9]} 65... Kg3 {[%clk 0:00:05.5]}
66. Rg7+ {[%clk 0:00:07]} 66... Kh4 {[%clk 0:00:04.5]} 67. Rf7 {[%clk
0:00:06.7]} 67... Kg3 {[%clk 0:00:04.8]} 68. Kc7 {[%clk 0:00:04.7]} 68... Kg2
{[%clk 0:00:03.1]} 69. Rg7+ {[%clk 0:00:04.1]} 69... Kh2 {[%clk 0:00:01.8]} 70.
Rh7+ {[%clk 0:00:04.4]} 70... Kg2 {[%clk 0:00:01.8]} 71. Rg7+ {[%clk 0:00:04.9]}
71... Kh2 {[%clk 0:00:02.2]} 72. Rf7 {[%clk 0:00:05.6]} 72... Kg2 {[%clk
0:00:02.5]} 73. Rxf2+ {[%clk 0:00:06.3]} 73... Kxf2 {[%clk 0:00:02.4]} 74. b8=Q
{[%clk 0:00:07.2]} 74... Rxb8 {[%clk 0:00:03.3]} 75. Kxb8 {[%clk 0:00:08.1]}
1/2-1/2

[Event "*** SCC Grand Prix: Titled Tuesday Blitz"]
[Site "Chess.com"]
[Date "2020.06.23"]
[Round "7"]
[White "Schandenfreude"]
[Black "temus_galaktionov"]
[Result "0-1"]
[WhiteElo "2524"]
[BlackElo "2699"]
[TimeControl "180+1"]
[EndTime "11:20:59 PDT"]
[Termination "temus_galaktionov won on time"]

1. Nf3 {[%clk 0:03:00.9]} 1... c6 {[%clk 0:03:00.9]} 2. c4 {[%clk 0:03:00.1]}
2... g6 {[%clk 0:03:01.8]} 3. Nc3 {[%clk 0:02:52.6]} 3... Bg7 {[%clk 0:03:02.7]}
4. e3 {[%clk 0:02:48.4]} 4... d6 {[%clk 0:03:03.6]} 5. d4 {[%clk 0:02:46.3]}
5... Nd7 {[%clk 0:03:00.9]} 6. Be2 {[%clk 0:02:46.2]} 6... Ngf6 {[%clk
0:02:55.7]} 7. O-O {[%clk 0:02:45.9]} 7... O-O {[%clk 0:02:55.1]} 8. b4 {[%clk
0:02:44.9]} 8... e5 {[%clk 0:02:52.6]} 9. b5 {[%clk 0:02:38.3]} 9... Re8 {[%clk
0:02:49]} 10. Ba3 {[%clk 0:02:29.8]} 10... Qa5 {[%clk 0:02:39.8]} 11. Qb3 {[%clk
0:02:18.1]} 11... exd4 {[%clk 0:02:39.5]} 12. bxc6 {[%clk 0:01:52.8]} 12... dxc3
{[%clk 0:01:59.1]} 13. cxd7 {[%clk 0:01:52]} 13... Nxd7 {[%clk 0:01:59]} 14.
Bxd6 {[%clk 0:01:37.4]} 14... Nc5 {[%clk 0:01:56.7]} 15. Qb5 {[%clk 0:01:22.1]}
15... Qxb5 {[%clk 0:01:54.3]} 16. cxb5 {[%clk 0:01:23]} 16... Ne4 {[%clk
0:01:55.2]} 17. Bb4 {[%clk 0:01:15]} 17... Be6 {[%clk 0:01:44.9]} 18. Nd4 {[%clk
0:01:06.2]} 18... Rac8 {[%clk 0:01:22.5]} 19. Nxe6 {[%clk 0:00:56.5]} 19... Rxe6
{[%clk 0:01:23.4]} 20. Bd3 {[%clk 0:00:38]} 20... Nc5 {[%clk 0:01:18.8]} 21.
Bxc5 {[%clk 0:00:32.6]} 21... Rxc5 {[%clk 0:01:19.7]} 22. Rac1 {[%clk
0:00:31.8]} 22... Kf8 {[%clk 0:01:15.2]} 23. a4 {[%clk 0:00:23.7]} 23... Rd6
{[%clk 0:01:08.9]} 24. Bc2 {[%clk 0:00:23.5]} 24... a6 {[%clk 0:01:04.3]} 25.
bxa6 {[%clk 0:00:22.7]} 25... bxa6 {[%clk 0:01:02.6]} 26. Rfd1 {[%clk
0:00:22.3]} 26... Rd2 {[%clk 0:00:53.2]} 27. Bb3 {[%clk 0:00:13.2]} 27... Rb2
{[%clk 0:00:49.9]} 28. Bc2 {[%clk 0:00:11.8]} 28... Ke7 {[%clk 0:00:49.3]} 29.
Kf1 {[%clk 0:00:11.6]} 29... Rc6 {[%clk 0:00:40.9]} 30. Rd5 {[%clk 0:00:09.9]}
30... Rcb6 {[%clk 0:00:38.4]} 31. Ke2 {[%clk 0:00:09]} 31... Ra2 {[%clk
0:00:37.6]} 32. Kd3 {[%clk 0:00:06.2]} 32... Bf6 {[%clk 0:00:31.1]} 33. Rc5
{[%clk 0:00:03.7]} 33... Rd6+ {[%clk 0:00:29.2]} 34. Kc4 {[%clk 0:00:02.6]}
34... Rb2 {[%clk 0:00:27]} 35. Rd5 {[%clk 0:00:01.6]} 35... Rc6+ {[%clk
0:00:24.8]} 36. Kd3 {[%clk 0:00:02.1]} 36... Ke6 {[%clk 0:00:24.8]} 37. e4
{[%clk 0:00:02.2]} 37... g5 {[%clk 0:00:21.1]} 38. Rb1 {[%clk 0:00:02.6]} 38...
h5 {[%clk 0:00:19.6]} 39. Rxb2 {[%clk 0:00:02.7]} 39... cxb2 {[%clk 0:00:20.5]}
40. Ra5 {[%clk 0:00:03]} 40... Rd6+ {[%clk 0:00:16.6]} 41. Ke2 {[%clk 0:00:03]}
41... Bc3 {[%clk 0:00:15.7]} 42. Rd5 {[%clk 0:00:02.6]} 42... Rxd5 {[%clk
0:00:14.7]} 43. exd5+ {[%clk 0:00:03.5]} 43... Kxd5 {[%clk 0:00:15.6]} 44. Kd3
{[%clk 0:00:04]} 44... Bd4 {[%clk 0:00:15.5]} 45. f3 {[%clk 0:00:04.3]} 45... h4
{[%clk 0:00:14.9]} 46. g3 {[%clk 0:00:04.2]} 46... h3 {[%clk 0:00:14.4]} 47. Bb1
{[%clk 0:00:02.8]} 47... a5 {[%clk 0:00:14.4]} 48. Kc2 {[%clk 0:00:03]} 48...
Kc5 {[%clk 0:00:13.8]} 49. Ba2 {[%clk 0:00:03.4]} 49... f6 {[%clk 0:00:14]} 50.
Be6 {[%clk 0:00:03.4]} 50... Kb4 {[%clk 0:00:14.6]} 51. Bd7 {[%clk 0:00:02]}
51... Ka3 {[%clk 0:00:13.6]} 52. Kb1 {[%clk 0:00:02.2]} 52... Bg1 {[%clk
0:00:12.7]} 53. Bxh3 {[%clk 0:00:02]} 53... Bxh2 {[%clk 0:00:13.2]} 54. g4
{[%clk 0:00:02.5]} 54... Be5 {[%clk 0:00:13.5]} 55. Bf1 {[%clk 0:00:02]} 55...
Kxa4 {[%clk 0:00:13.3]} 56. Ka2 {[%clk 0:00:02.9]} 56... Kb4 {[%clk 0:00:13.4]}
57. Bd3 {[%clk 0:00:03.4]} 57... Kc3 {[%clk 0:00:13]} 58. Bb1 {[%clk 0:00:04.3]}
58... Kd2 {[%clk 0:00:12.9]} 59. Bf5 {[%clk 0:00:04.9]} 59... Ke3 {[%clk
0:00:12.6]} 60. Be4 {[%clk 0:00:04.5]} 60... Kd4 {[%clk 0:00:11.7]} 61. Bb1
{[%clk 0:00:04.3]} 61... Kc5 {[%clk 0:00:11.7]} 62. Be4 {[%clk 0:00:04.3]} 62...
Kb4 {[%clk 0:00:12]} 63. Bb1 {[%clk 0:00:05]} 63... a4 {[%clk 0:00:12.9]} 64.
Be4 {[%clk 0:00:05.1]} 64... a3 {[%clk 0:00:13.7]} 65. Bb1 {[%clk 0:00:05.3]}
65... Bd6 {[%clk 0:00:14.2]} 66. Be4 {[%clk 0:00:05.3]} 66... Kc3 {[%clk
0:00:14.8]} 67. Bb1 {[%clk 0:00:05.1]} 67... Kd2 {[%clk 0:00:15.1]} 68. Be4
{[%clk 0:00:05]} 68... Ke3 {[%clk 0:00:15.6]} 69. Bf5 {[%clk 0:00:04.5]} 69...
Kxf3 {[%clk 0:00:15]} 70. Be6 {[%clk 0:00:04.8]} 70... Kf4 {[%clk 0:00:14.8]}
71. Bf5 {[%clk 0:00:05.1]} 71... Be7 {[%clk 0:00:15.1]} 72. Be6 {[%clk
0:00:05.1]} 72... Ke5 {[%clk 0:00:13.6]} 73. Bf5 {[%clk 0:00:05.4]} 73... Kd4
{[%clk 0:00:14.1]} 74. Bc8 {[%clk 0:00:06.3]} 74... Kc3 {[%clk 0:00:14.5]} 75.
Bf5 {[%clk 0:00:07.2]} 75... Kd2 {[%clk 0:00:14.8]} 76. Bb1 {[%clk 0:00:07.1]}
76... Kc1 {[%clk 0:00:13.8]} 77. Bf5 {[%clk 0:00:07.1]} 77... Bc5 {[%clk
0:00:13.9]} 78. Be4 {[%clk 0:00:07.3]} 78... Bd6 {[%clk 0:00:13.4]} 79. Bf5
{[%clk 0:00:07.5]} 79... Kd2 {[%clk 0:00:13.4]} 80. Be4 {[%clk 0:00:07.7]} 80...
Ke3 {[%clk 0:00:13.9]} 81. Bf5 {[%clk 0:00:08.3]} 81... Kf3 {[%clk 0:00:14.5]}
82. Bc8 {[%clk 0:00:08.1]} 82... Kf4 {[%clk 0:00:14.8]} 83. Bf5 {[%clk 0:00:09]}
83... Ke5 {[%clk 0:00:15.2]} 84. Bc8 {[%clk 0:00:09.1]} 84... Kd4 {[%clk
0:00:14.4]} 85. Bf5 {[%clk 0:00:10]} 85... Kc3 {[%clk 0:00:14.8]} 86. Bb1 {[%clk
0:00:09.9]} 86... Be7 {[%clk 0:00:12.8]} 87. Bf5 {[%clk 0:00:09.7]} 87... Bf8
{[%clk 0:00:12.7]} 88. Bb1 {[%clk 0:00:10.6]} 88... Kd2 {[%clk 0:00:09.3]} 89.
Bf5 {[%clk 0:00:10.6]} 89... Ke2 {[%clk 0:00:09.4]} 90. Bb1 {[%clk 0:00:10.5]}
90... Kf2 {[%clk 0:00:09.6]} 91. Bf5 {[%clk 0:00:11.4]} 91... Kg3 {[%clk
0:00:10]} 92. Kb1 {[%clk 0:00:11.2]} 92... Kf4 {[%clk 0:00:08.9]} 93. Ka2 {[%clk
0:00:11.2]} 93... Ke3 {[%clk 0:00:08.3]} 94. Kb1 {[%clk 0:00:11.5]} 94... Kd2
{[%clk 0:00:08.2]} 95. Ka2 {[%clk 0:00:11.6]} 95... Kc3 {[%clk 0:00:07.7]} 96.
Bg6 {[%clk 0:00:10.9]} 96... Bc5 {[%clk 0:00:06.2]} 97. Bf5 {[%clk 0:00:10.9]}
97... Kd2 {[%clk 0:00:06.5]} 98. Bg6 {[%clk 0:00:10.5]} 98... Kc1 {[%clk
0:00:07.4]} 99. Bf5 {[%clk 0:00:10.5]} 99... Be7 {[%clk 0:00:05]} 100. Bg6
{[%clk 0:00:10.3]} 100... Bd8 {[%clk 0:00:05]} 101. Bf5 {[%clk 0:00:10.4]}
101... Bc7 {[%clk 0:00:05.2]} 102. Bg6 {[%clk 0:00:04.4]} 102... Be5 {[%clk
0:00:05.3]} 0-1

[Event "*** SCC Grand Prix: Titled Tuesday Blitz"]
[Site "Chess.com"]
[Date "2020.06.23"]
[Round "8"]
[White "CyberneticLion"]
[Black "Baby_Legs"]
[Result "1-0"]
[WhiteElo "2469"]
[BlackElo "2595"]
[TimeControl "180+1"]
[EndTime "11:30:57 PDT"]
[Termination "CyberneticLion won by resignation"]

1. e4 {[%clk 0:02:51.7]} 1... g6 {[%clk 0:02:57]} 2. d4 {[%clk 0:02:51.2]} 2...
Bg7 {[%clk 0:02:57.4]} 3. Nc3 {[%clk 0:02:48.9]} 3... d6 {[%clk 0:02:57.3]} 4.
Bf4 {[%clk 0:02:45.6]} 4... c6 {[%clk 0:02:56.3]} 5. Nf3 {[%clk 0:02:45]} 5...
Nd7 {[%clk 0:02:56.5]} 6. Qd2 {[%clk 0:02:41.5]} 6... b5 {[%clk 0:02:51.3]} 7.
a3 {[%clk 0:02:40.2]} 7... a6 {[%clk 0:02:49]} 8. Be2 {[%clk 0:02:37.3]} 8...
Bb7 {[%clk 0:02:43.3]} 9. e5 {[%clk 0:02:28.7]} 9... Nf8 {[%clk 0:02:27.1]} 10.
exd6 {[%clk 0:02:16.6]} 10... exd6 {[%clk 0:02:26]} 11. d5 {[%clk 0:02:16.4]}
11... c5 {[%clk 0:02:23.2]} 12. O-O {[%clk 0:02:12.6]} 12... Kd7 {[%clk
0:02:12.7]} 13. Ne4 {[%clk 0:01:57.5]} 13... Nf6 {[%clk 0:02:11.8]} 14. Nxd6
{[%clk 0:01:55.5]} 14... Bxd5 {[%clk 0:02:11.2]} 15. c4 {[%clk 0:01:55.8]} 15...
bxc4 {[%clk 0:02:09.3]} 16. Bxc4 {[%clk 0:01:55.7]} 16... Bxc4 {[%clk
0:02:08.6]} 17. Nxf7+ {[%clk 0:01:53.3]} 1-0

[Event "*** SCC Grand Prix: Titled Tuesday Blitz"]
[Site "Chess.com"]
[Date "2020.06.23"]
[Round "8"]
[White "Susal_De_Silva"]
[Black "NMZanette"]
[Result "1-0"]
[WhiteElo "2388"]
[BlackElo "2168"]
[TimeControl "180+1"]
[EndTime "11:31:01 PDT"]
[Termination "Susal_De_Silva won by resignation"]

1. e4 {[%clk 0:03:00.9]} 1... e5 {[%clk 0:02:56.2]} 2. Nf3 {[%clk 0:03:00.8]}
2... Nc6 {[%clk 0:02:56.4]} 3. Bc4 {[%clk 0:03:01.3]} 3... Nf6 {[%clk
0:02:55.8]} 4. d3 {[%clk 0:03:01.8]} 4... Be7 {[%clk 0:02:55.7]} 5. O-O {[%clk
0:03:01.7]} 5... O-O {[%clk 0:02:56.2]} 6. Re1 {[%clk 0:03:00.6]} 6... d6 {[%clk
0:02:52.2]} 7. a4 {[%clk 0:03:00.5]} 7... a6 {[%clk 0:02:52.1]} 8. Nbd2 {[%clk
0:02:59.7]} 8... Kh8 {[%clk 0:02:51.3]} 9. Ng5 {[%clk 0:02:54.3]} 9... Qe8
{[%clk 0:02:50.2]} 10. f4 {[%clk 0:02:50]} 10... h6 {[%clk 0:02:43.7]} 11. Ngf3
{[%clk 0:02:47.6]} 11... exf4 {[%clk 0:02:35.1]} 12. Nb3 {[%clk 0:02:42.7]}
12... Ne5 {[%clk 0:02:21]} 13. Bxf4 {[%clk 0:02:40.5]} 13... Nxc4 {[%clk
0:02:15.6]} 14. dxc4 {[%clk 0:02:39.1]} 14... Qc6 {[%clk 0:02:08.7]} 15. e5
{[%clk 0:02:32.9]} 15... Nh5 {[%clk 0:01:56.6]} 16. Nfd4 {[%clk 0:02:31.3]}
16... Qxc4 {[%clk 0:01:46.7]} 17. Qxh5 {[%clk 0:02:29.2]} 17... dxe5 {[%clk
0:01:45.2]} 18. Bxe5 {[%clk 0:02:27.9]} 18... f6 {[%clk 0:01:43.3]} 19. Bf4
{[%clk 0:02:25.1]} 19... Bc5 {[%clk 0:01:38.3]} 20. Qxc5 {[%clk 0:02:22.5]} 1-0

[Event "*** SCC Grand Prix: Titled Tuesday Blitz"]
[Site "Chess.com"]
[Date "2020.06.23"]
[Round "8"]
[White "monalize"]
[Black "SilviusTiberius"]
[Result "1-0"]
[WhiteElo "2282"]
[BlackElo "2395"]
[TimeControl "180+1"]
[EndTime "11:31:18 PDT"]
[Termination "monalize won by resignation"]

1. e4 {[%clk 0:03:00.9]} 1... e5 {[%clk 0:02:59.7]} 2. Nf3 {[%clk 0:03:00.4]}
2... Nc6 {[%clk 0:03:00.3]} 3. Bb5 {[%clk 0:03:00]} 3... a6 {[%clk 0:03:00.1]}
4. Bxc6 {[%clk 0:02:59.7]} 4... dxc6 {[%clk 0:03:00]} 5. O-O {[%clk 0:02:59.3]}
5... Bg4 {[%clk 0:03:00.3]} 6. h3 {[%clk 0:02:58.5]} 6... h5 {[%clk 0:03:00]} 7.
d3 {[%clk 0:02:58]} 7... Qf6 {[%clk 0:02:59.7]} 8. Be3 {[%clk 0:02:54.6]} 8...
Bd6 {[%clk 0:02:55.2]} 9. Nbd2 {[%clk 0:02:53.5]} 9... Ne7 {[%clk 0:02:49.8]}
10. Re1 {[%clk 0:02:49.3]} 10... O-O-O {[%clk 0:02:43]} 11. hxg4 {[%clk
0:02:15.7]} 11... hxg4 {[%clk 0:02:41.2]} 12. Nh2 {[%clk 0:02:15.6]} 12... Rxh2
{[%clk 0:02:18.4]} 13. Qxg4+ {[%clk 0:02:13]} 13... Kb8 {[%clk 0:02:14.2]} 14.
Kxh2 {[%clk 0:02:12.8]} 14... Rh8+ {[%clk 0:02:10.1]} 15. Kg1 {[%clk 0:02:12.2]}
1-0

[Event "*** SCC Grand Prix: Titled Tuesday Blitz"]
[Site "Chess.com"]
[Date "2020.06.23"]
[Round "8"]
[White "dolynachess"]
[Black "mamey78"]
[Result "1/2-1/2"]
[WhiteElo "2449"]
[BlackElo "2345"]
[TimeControl "180+1"]
[EndTime "11:31:30 PDT"]
[Termination "Game drawn by repetition"]

1. d4 {[%clk 0:03:00.9]} 1... d5 {[%clk 0:02:51.3]} 2. c4 {[%clk 0:03:00.2]}
2... c6 {[%clk 0:02:50.4]} 3. Nc3 {[%clk 0:02:59.4]} 3... Nf6 {[%clk 0:02:50.4]}
4. Nf3 {[%clk 0:02:59.9]} 4... e6 {[%clk 0:02:49.9]} 5. g3 {[%clk 0:02:59.8]}
5... dxc4 {[%clk 0:02:48.8]} 6. Bg2 {[%clk 0:03:00]} 6... b5 {[%clk 0:02:48.8]}
7. O-O {[%clk 0:03:00]} 7... Bb7 {[%clk 0:02:46.3]} 8. e4 {[%clk 0:02:59.1]}
8... Nbd7 {[%clk 0:02:44.7]} 9. e5 {[%clk 0:02:59]} 9... Nd5 {[%clk 0:02:43.2]}
10. Ng5 {[%clk 0:02:56.9]} 10... Nxc3 {[%clk 0:02:29.5]} 11. bxc3 {[%clk
0:02:56.1]} 11... Be7 {[%clk 0:02:24.5]} 12. Qh5 {[%clk 0:02:55.1]} 12... g6
{[%clk 0:02:21.2]} 13. Qh6 {[%clk 0:02:52.3]} 13... Bf8 {[%clk 0:02:18.4]} 14.
Qh3 {[%clk 0:02:51.8]} 14... Be7 {[%clk 0:01:41.4]} 15. Qh6 {[%clk 0:02:49.2]}
15... Bf8 {[%clk 0:01:40.4]} 16. Qh3 {[%clk 0:02:48.4]} 16... Be7 {[%clk
0:01:40]} 17. Qh6 {[%clk 0:01:45.9]} 1/2-1/2